bitfinex/quotes_ETHUSD_20241106
["timestamp","ask_amount","ask_price","bid_price","bid_amount"]
[1730906336141,3.75993,2659.7,2659.0,3.76081]
[1730906336142,3.7599,2659.7,2659.0,3.76081]
[1730906336350,3.7601,2659.5,2659.0,3.76081]
[1730906336506,3.76049,2659.3,2658.6,3.76125]
[1730906336705,3.76049,2659.3,2658.7,3.76115]
[1730906336913,3.76075,2659.1,2658.4,3.76153]
[1730906337139,3.76042,2659.3,2658.6,3.76135]
[1730906337359,3.76075,2659.1,2658.4,3.76154]
[1730906337521,3.76089,2659.0,2658.5,0.07521141]
[1730906337726,3.76128,2658.7,2658.2,4.51996545]
[1730906338034,3.76128,2658.7,2657.9,0.7551]
[1730906338035,3.76123,2658.7,2657.9,0.7551]
[1730906338370,3.76123,2658.7,2656.9,0.01]
[1730906338371,3.76272,2657.7,2656.9,3.76368]
[1730906338642,0.7512,2658.3,2656.7,3.82046191]
[1730906338643,4.51306,2658.3,2657.5,3.7628]
[1730906338845,4.51306,2658.3,2657.6,0.07524214]
[1730906339003,4.51306,2658.3,2657.7,3.76254]
[1730906339204,3.76199,2658.2,2657.5,4.13908]
[1730906339445,4.51306,2658.3,2657.5,4.13908]
[1730906339690,3.78118,2658.8,2657.6,0.56614335]
[1730906339691,4.51383,2658.7,2657.6,0.56614335]
[1730906339849,4.51383,2658.7,2658.0,3.76213]
[1730906340010,4.52383,2658.7,2658.1,0.07522943]
[1730906340344,3.76191,2658.3,2657.6,3.76273]
[1730906340530,7.52382,2658.3,2657.6,3.76273]
[1730906340731,3.76191,2658.3,2657.6,3.76269]
[1730906340971,0.01,2658.3,2657.4,0.77]
[1730906341129,3.76148,2658.6,2658.1,3.76206]
[1730906341328,0.7573,2659.1,2658.3,3.76171]
[1730906341523,4.51798,2659.1,2658.5,3.76149]
[1730906341924,5.02680985,2660.0,2658.9,3.76089]
[1730906341925,3.76001,2659.6,2658.9,3.76089]
[1730906342164,3.76007,2659.6,2659.0,0.376089]
[1730906342363,3.76033,2659.4,2658.7,3.76122]
[1730906342570,3.76033,2659.4,2658.7,3.76114]
[1730906342752,3.75999,2659.6,2658.8,3.76103]
[1730906342753,7.52005,2659.6,2658.8,3.76103]
[1730906342925,3.7597,2659.8,2658.9,0.82742129]
[1730906343124,3.75982,2659.7,2659.0,0.757]
[1730906343324,3.7601,2659.5,2659.0,0.757]
[1730906343539,3.76053,2659.2,2658.6,0.757]
[1730906343738,3.76067,2659.1,2658.6,0.757]
[1730906343978,3.76067,2659.1,2658.6,0.07521537]
[1730906344193,3.76086,2659.0,2658.3,0.774]
[1730906344394,0.01,2659.2,2657.9,0.81]
[1730906344699,0.01,2659.2,2657.9,4.57229]
[1730906344700,3.76136,2658.7,2657.9,4.57229]
[1730906344870,0.7586,2659.0,2658.3,3.76175]
[1730906345035,3.76113,2658.8,2658.3,3.76175]
[1730906345238,0.01,2659.1,2657.9,0.81]
[1730906345239,3.76077,2659.1,2658.6,0.7791]
[1730906345450,3.76077,2659.1,2658.7,0.07521564]
[1730906345675,3.76077,2659.1,2658.6,0.7791]
[1730906345880,3.76077,2659.1,2658.5,3.76139]
[1730906346083,3.75982,2659.7,2658.6,0.0752165]
[1730906346244,0.8033,2659.2,2658.3,3.76171]
[1730906346441,3.76083,2659.0,2658.4,3.76164]
[1730906346662,3.76042,2659.3,2658.5,3.76146]
[1730906346864,0.01,2659.8,2658.4,0.9085286]
[1730906346865,0.7589,2660.0,2659.3,3.76037]
[1730906347050,0.7589,2660.0,2659.4,3.76015]
[1730906347269,0.7589,2660.0,2659.5,3.76002]
[1730906347590,0.01,2660.7,2659.5,3.76002]
[1730906347591,3.75781,2661.2,2660.3,3.75883]
[1730906347745,3.7575,2661.4,2660.7,3.75832]
[1730906347944,3.7575,2661.4,2660.8,3.83332909]
[1730906348179,7.51444,2661.6,2660.9,3.75812]
[1730906348389,3.75672,2661.9,2661.1,3.77774]
[1730906348585,3.75724,2661.6,2661.0,0.7959]
[1730906348788,3.75688,2661.8,2661.1,0.0851473]
[1730906349090,3.75723,2661.6,2661.0,0.7959]
[1730906349244,3.75688,2661.8,2661.1,0.01]
[1730906349452,3.75686,2661.8,2661.1,3.77783]
[1730906349647,3.75686,2661.8,2661.1,3.76783]
[1730906349848,3.75686,2661.8,2661.3,0.01]
[1730906350151,3.75658,2662.0,2660.5,0.7959]
[1730906350152,3.75798,2661.1,2660.5,0.7959]
[1730906350364,7.51527,2661.3,2660.7,0.01]
[1730906350567,0.8213,2661.6,2660.5,5.031931]
[1730906350768,3.75771,2661.2,2660.5,5.031931]
[1730906350985,3.75805,2661.0,2660.5,1.253371]
[1730906351298,3.75718,2661.6,2660.8,3.76817]
[1730906351591,3.75718,2661.6,2660.9,0.376817]
[1730906351808,3.75745,2661.4,2660.9,0.376817]
[1730906351966,3.75745,2661.4,2660.8,0.01]
[1730906352302,3.75863,2660.6,2660.1,0.01]
[1730906352594,3.75878,2660.5,2659.9,0.07517735]
[1730906352809,3.75928,2660.1,2659.5,0.7747]
[1730906352955,3.75974,2659.8,2659.1,3.77054]
[1730906353155,3.76032,2659.4,2658.7,0.7747]
[1730906353367,3.76082,2659.0,2658.5,0.01]
[1730906353586,0.7833,2659.5,2658.2,4.5266]
[1730906353768,3.76121,2658.8,2658.3,0.01]
[1730906354190,3.76121,2658.8,2658.2,4.52663]
[1730906354399,3.76085,2659.0,2658.4,3.76165]
[1730906354557,3.76125,2658.7,2658.2,1.23121081]
[1730906354757,3.76125,2658.7,2658.2,0.7647]
[1730906355099,3.76137,2658.6,2658.2,0.7647]
[1730906355267,3.76044,2659.3,2658.1,0.20351886]
[1730906355268,0.7555,2658.7,2658.1,0.1282881]
[1730906355580,0.7555,2659.5,2658.1,0.1382881]
[1730906355787,4.51661,2658.8,2658.1,0.1282881]
[1730906355968,3.76169,2658.4,2658.1,0.1282881]
[1730906356169,3.76194,2658.2,2658.1,0.1282881]
[1730906357158,0.7555,2658.8,2658.1,0.1282881]
[1730906357363,3.76181,2658.3,2658.1,0.1282881]
[1730906357607,3.76134,2658.7,2658.1,0.1282881]
[1730906357907,3.76095,2658.9,2658.3,3.76178]
[1730906358061,0.7678,2659.2,2658.4,0.07523008]
[1730906358260,7.36984,2659.7,2658.1,0.1282881]
[1730906358261,0.7678,2658.5,2658.1,0.1282881]
[1730906358463,3.76175,2658.4,2658.1,0.1282881]
[1730906358676,0.7678,2658.5,2658.1,0.1282881]
[1730906358876,3.76194,2658.2,2658.1,0.1282881]
[1730906359911,0.7678,2658.5,2658.1,0.1282881]
[1730906360082,3.76175,2658.4,2658.1,0.1282881]
[1730906360407,3.76194,2658.2,2658.1,0.1282881]
[1730906360709,4.58155,2659.2,2658.4,3.76162]
[1730906361016,3.75976,2659.8,2658.7,3.76122]
[1730906361017,3.76024,2659.4,2658.7,3.76122]
[1730906361169,3.76024,2659.4,2658.8,3.76107]
[1730906361713,4.58093,2659.6,2659.0,3.7608]
[1730906362007,4.58093,2659.6,2659.1,0.37608]
[1730906362008,3.76011,2659.5,2659.1,0.37608]
[1730906362178,0.8209,2659.6,2659.1,0.37608]
[1730906362391,0.18962471,2661.6,2659.1,0.37608]
[1730906362392,0.8004,2660.5,2659.4,0.01]
[1730906364175,3.75921,2660.2,2659.6,0.01]
[1730906364523,4.55918,2660.5,2659.7,3.75973]
[1730906364831,3.75986,2659.7,2659.4,0.8315]
[1730906365109,3.75986,2659.7,2659.2,0.01]
[1730906365501,3.75925,2660.1,2658.9,0.01]
[1730906365672,3.76036,2659.4,2658.9,0.01]
[1730906365871,3.76004,2659.6,2659.1,0.01]
[1730906366140,3.75968,2659.8,2659.2,3.77043]
[1730906366409,3.75972,2659.8,2659.2,3.77043]
[1730906366595,4.51177,2660.0,2659.3,3.76033]
[1730906366799,3.75846,2660.7,2659.1,0.47079058]
[1730906366800,3.75919,2660.2,2659.6,3.75987]
[1730906367016,3.75991,2659.7,2659.3,0.01]
[1730906367306,3.75983,2659.7,2659.3,0.01]
[1730906367509,3.75996,2659.6,2659.1,0.01]
[1730906367819,3.75897,2660.3,2659.2,3.76052]
[1730906367988,3.76139,2658.6,2658.1,0.1282881]
[1730906368190,3.76123,2658.7,2658.1,0.1282881]
[1730906368384,3.76123,2658.7,2658.1,3.96551127]
[1730906368588,3.76123,2658.7,2658.2,1.53676413]
[1730906368889,0.7713,2658.9,2658.3,3.7618]
[1730906369084,4.53747,2659.5,2658.5,3.76151]
[1730906369286,3.76042,2659.3,2658.7,3.76123]
[1730906369587,3.76028,2659.4,2658.8,3.76097]
[1730906369792,3.76028,2659.4,2658.9,0.752209]
[1730906370034,3.75991,2659.7,2658.9,0.752209]
[1730906370334,0.7773,2659.8,2658.9,0.764]
[1730906370538,3.75927,2660.1,2659.5,3.73766]
[1730906371053,4.58324,2660.3,2659.4,0.0751933]
[1730906371054,0.8242,2660.3,2659.7,3.75971]
[1730906371263,4.58327,2660.3,2659.7,3.75971]
[1730906371426,4.58327,2660.3,2659.7,0.751974]
[1730906371624,3.75933,2660.1,2659.7,0.751974]
[1730906372309,3.75849,2660.7,2659.9,3.75953]
[1730906372511,3.75849,2660.7,2660.1,3.75916]
[1730906372726,3.75849,2660.7,2659.9,3.75943]
[1730906372929,3.75914,2660.2,2659.8,0.764]
[1730906373153,3.75914,2660.2,2659.5,4.59231]
[1730906373353,3.75914,2660.2,2659.6,3.75988]
[1730906373721,3.75914,2660.2,2659.5,4.59231]
[1730906373925,3.75914,2660.2,2659.5,5.42757]
[1730906374139,3.75914,2660.2,2659.5,8.35233]
[1730906374463,3.75914,2660.2,2659.6,3.75994]
[1730906374761,3.75925,2660.1,2659.5,4.59231]
[1730906374911,3.75925,2660.1,2659.3,3.76031]
[1730906374912,3.75969,2659.8,2659.2,3.76048]
[1730906375123,3.75969,2659.8,2659.1,4.59289]
[1730906375346,3.75998,2659.6,2659.1,1.208359]
[1730906375514,3.76012,2659.5,2659.1,1.208359]
[1730906375713,3.76012,2659.5,2659.1,0.376059]
[1730906375919,3.76012,2659.5,2658.9,3.76087]
[1730906376120,0.7739,2660.2,2658.7,4.59345]
[1730906376121,3.75984,2659.7,2659.0,0.07521107]
[1730906376427,3.75954,2659.9,2659.0,3.7607]
[1730906376622,7.51973,2659.7,2659.1,3.76058]
[1730906376839,3.75982,2659.7,2659.0,3.76079]
[1730906377041,3.75998,2659.6,2659.1,0.376079]
[1730906377240,4.53305,2660.2,2658.7,0.8323]
[1730906377241,3.76039,2659.3,2658.7,0.8323]
[1730906377463,3.76018,2659.5,2658.8,3.76101]
[1730906377786,3.7599,2659.7,2659.1,3.76064]
[1730906378075,3.7599,2659.7,2659.1,4.512789]
[1730906378674,3.7599,2659.7,2659.1,4.512739]
[1730906378934,0.7739,2660.2,2659.4,3.76014]
[1730906379167,3.75954,2659.9,2659.3,3.76028]
[1730906379477,3.75975,2659.8,2659.4,0.376028]
[1730906379846,7.5187,2660.1,2659.1,0.07520317]
[1730906380171,3.76005,2659.6,2658.9,3.76087]
[1730906380382,3.75982,2659.7,2659.0,0.376087]
[1730906380665,3.75953,2660.0,2659.0,0.0752046]
[1730906380864,3.75953,2660.0,2659.3,3.76031]
[1730906381069,3.75981,2659.8,2659.4,0.376031]
[1730906381373,3.75933,2660.1,2659.5,4.51182]
[1730906381577,3.75933,2660.1,2659.6,3.75994]
[1730906381871,0.7739,2660.2,2659.5,0.826995]
[1730906382041,3.75875,2660.5,2659.5,0.7518]
[1730906382249,3.75875,2660.5,2659.8,3.75957]
[1730906382451,3.75875,2660.5,2660.0,3.75938]
[1730906382931,3.75885,2660.4,2659.8,3.75957]
[1730906383130,0.7963,2661.0,2659.8,0.38347619]
[1730906383330,0.02,2661.7,2659.8,0.38347619]
[1730906383331,3.75778,2661.2,2660.6,3.75845]
[1730906383657,4.55321,2661.8,2661.0,3.75795]
[1730906383831,3.75665,2662.0,2661.3,3.75756]
[1730906384032,0.7921,2662.2,2661.2,0.7586]
[1730906384280,3.81,2662.5,2661.6,3.75704]
[1730906384571,3.81,2662.5,2661.8,3.75684]
[1730906384572,3.75611,2662.4,2661.8,3.75684]
[1730906384780,4.191,2662.5,2661.9,0.7689]
[1730906384781,7.56588,2662.5,2661.9,0.7689]
[1730906385215,3.76,2662.5,2661.9,0.7689]
[1730906385572,3.75612,2662.4,2661.9,0.7689]
[1730906385770,3.75629,2662.2,2661.6,3.75707]
[1730906385983,3.75629,2662.2,2661.4,3.75736]
[1730906385984,3.75658,2662.0,2661.4,3.75736]
[1730906386216,3.75672,2661.9,2661.2,4.58915]
[1730906386437,3.75688,2661.8,2661.2,0.8315]
[1730906386723,3.75716,2661.6,2661.2,0.8315]
[1730906386929,3.75699,2661.7,2661.2,0.8315]
[1730906387517,7.51409,2661.7,2661.0,3.75787]
[1730906387674,3.75716,2661.6,2661.0,3.75787]
[1730906387876,3.75716,2661.6,2660.5,0.8315]
[1730906387877,3.75757,2661.3,2660.5,0.8315]
[1730906388089,3.75727,2661.5,2660.2,3.75907]
[1730906388313,3.75727,2661.5,2660.0,3.75935]
[1730906388314,3.75839,2660.8,2660.1,0.8275]
[1730906388613,3.75841,2660.7,2660.1,0.8275]
[1730906388828,3.75841,2660.7,2660.1,4.58675]
[1730906388990,3.75865,2660.6,2660.1,0.90267638]
[1730906389189,0.7578,2660.9,2659.7,0.8275]
[1730906389493,3.75867,2660.6,2660.0,3.75939]
[1730906389690,3.75826,2660.8,2659.7,3.75974]
[1730906389898,3.75907,2660.3,2659.7,3.75974]
[1730906390131,3.75907,2660.3,2659.5,3.76004]
[1730906390423,7.51818,2660.3,2659.6,3.83510799]
[1730906390631,3.75913,2660.2,2659.6,3.83510799]
[1730906391192,3.75887,2660.4,2659.7,3.75972]
[1730906391399,3.75877,2660.5,2659.9,3.75944]
[1730906391598,0.7578,2660.9,2660.2,3.75908]
[1730906391829,3.75836,2660.8,2660.2,3.75898]
[1730906392289,4.56129,2661.2,2660.4,3.75883]
[1730906392488,3.75798,2661.0,2660.5,3.75861]
[1730906392690,3.75798,2661.0,2660.5,0.75926165]
[1730906392919,0.8035,2661.2,2660.1,0.8023]
[1730906393130,3.75877,2660.5,2660.1,0.8023]
[1730906393335,0.8035,2661.2,2660.1,0.8023]
[1730906393493,3.75842,2660.7,2660.1,0.8023]
[1730906393846,3.75855,2660.6,2660.1,4.5615]
[1730906393996,4.56125,2661.2,2660.6,3.75842]
[1730906394198,3.75838,2660.8,2660.2,3.75903]
[1730906394403,3.75827,2660.8,2660.1,1.634395]
[1730906394601,3.7587,2660.5,2660.1,0.8023]
[1730906394954,3.75863,2660.6,2660.1,0.8023]
[1730906395248,3.7588,2660.5,2660.0,3.75938]
[1730906395398,3.75885,2660.4,2659.8,3.75959]
[1730906395593,3.75907,2660.3,2659.8,3.75959]
[1730906395928,3.7589,2660.4,2659.7,0.90568331]
[1730906396282,3.75892,2660.4,2659.8,3.75956]
[1730906396423,3.75933,2660.1,2659.7,0.8305]
[1730906397851,3.75849,2660.7,2660.1,3.75917]
[1730906398161,3.75871,2660.5,2659.9,0.07518075]
[1730906398464,3.75871,2660.5,2659.7,3.75974]
[1730906398465,3.75897,2660.3,2659.7,3.75974]
[1730906398757,3.75877,2660.5,2659.8,3.75968]
[1730906398924,3.75921,2660.2,2659.6,3.83505782]
[1730906399123,3.75921,2660.2,2659.6,7.59493782]
[1730906399365,3.75905,2660.3,2659.7,3.75979]
[1730906399559,3.75905,2660.3,2659.8,3.75964]
[1730906400167,0.7961,2660.6,2659.9,0.07518575]
[1730906400366,0.7961,2660.6,2659.7,3.75972]
[1730906400367,3.75907,2660.3,2659.7,3.75972]
[1730906400570,3.75878,2660.5,2659.9,3.7595]
[1730906400769,0.301,2661.4,2660.3,3.75896]
[1730906400770,4.57454,2660.9,2660.3,3.75896]
[1730906400976,0.8164,2661.3,2660.3,3.75896]
[1730906401264,3.75837,2660.8,2660.1,0.833]
[1730906401461,3.7589,2660.4,2659.7,4.511732]
[1730906401673,3.75944,2660.0,2659.6,0.833]
[1730906401826,0.8164,2660.6,2659.3,0.7628]
[1730906401827,3.75911,2660.2,2659.3,0.7628]
[1730906402024,3.7597,2659.8,2659.3,0.7628]
[1730906402262,3.75996,2659.6,2659.3,0.7628]
[1730906402469,3.7599,2659.7,2659.3,0.7628]
[1730906402657,3.75916,2660.2,2659.3,0.7628]
[1730906402854,3.7594,2660.0,2659.4,7.52031]
[1730906403053,3.75954,2659.9,2659.4,3.76015]
[1730906403353,3.7594,2660.0,2659.4,3.83534605]
[1730906403529,3.7594,2660.0,2659.5,3.76002]
[1730906403750,3.7594,2660.0,2659.4,3.83543605]
[1730906403960,3.7594,2660.0,2659.5,3.76004]
[1730906404157,0.8164,2660.6,2659.5,3.76004]
[1730906404158,4.57504,2660.6,2659.8,3.7596]
[1730906404376,4.57504,2660.6,2659.5,0.83582761]
[1730906404377,4.57084,2661.1,2660.5,3.75855]
[1730906404595,3.7575,2661.4,2660.6,0.07516996]
[1730906404794,3.75771,2661.2,2660.7,3.75832]
[1730906405017,3.75785,2661.1,2660.6,3.75852]
[1730906405247,3.75742,2661.4,2660.3,3.75883]
[1730906405404,3.758,2661.0,2660.3,3.75883]
[1730906405561,3.75813,2660.9,2660.4,3.75876]
[1730906405779,8.18032,2661.5,2660.4,3.75876]
[1730906405780,3.61,2661.5,2661.4,0.01]
[1730906406306,3.75477,2663.3,2662.4,3.75589]
[1730906406327,3.7545,2663.5,2662.9,3.7553]
[1730906406518,0.8227,2663.6,2663.0,3.75515]
[1730906406675,0.7911,2664.3,2662.9,3.7553]
[1730906406866,3.75393,2663.9,2663.1,3.75495]
[1730906407062,1.83528849,2663.7,2662.9,3.7553]
[1730906407258,1.8074366,2663.4,2662.8,0.7845]
[1730906407531,1.88735342,2664.0,2663.0,3.75505]
[1730906407813,0.7911,2664.3,2662.9,0.07509509]
[1730906407814,3.75339,2664.3,2663.5,3.75434]
[1730906408021,3.75347,2664.2,2663.6,0.07507311]
[1730906408203,3.75188,2665.4,2663.3,3.75464]
[1730906408398,0.375182,2665.3,2664.0,0.8122]
[1730906408575,0.01,2665.7,2663.6,0.8038]
[1730906408576,3.75308,2664.5,2663.6,0.8038]
[1730906408898,0.7607,2664.6,2663.6,0.8038]
[1730906408899,4.51368,2664.6,2663.6,0.8038]
[1730906409147,0.7607,2665.2,2663.7,3.75417]
[1730906409428,3.75261,2664.9,2663.6,0.8038]
[1730906409606,3.75238,2665.0,2664.0,3.75364]
[1730906409897,3.75264,2664.8,2663.8,3.75391]
[1730906410063,3.75264,2664.8,2663.9,3.75385]
[1730906410259,0.375264,2664.7,2663.8,3.75403]
[1730906410469,0.375264,2664.7,2663.8,3.75394]
[1730906410777,0.7607,2665.2,2663.6,0.8038]
[1730906410778,3.75335,2664.3,2663.6,0.8038]
[1730906411100,3.75335,2664.3,2662.8,3.7653]
[1730906411101,3.75361,2664.1,2663.0,4.57645]
[1730906411333,0.7943,2664.3,2663.0,0.8214]
[1730906411334,3.75404,2663.8,2663.0,0.8214]
[1730906411484,3.75376,2664.0,2663.2,3.75486]
[1730906411682,3.75352,2664.2,2663.0,0.8214]
[1730906411683,3.75347,2664.2,2663.0,0.8214]
[1730906411899,3.75419,2663.7,2663.0,0.8214]
[1730906412132,4.505271,2663.6,2663.0,0.8214]
[1730906412292,0.750831,2663.6,2662.5,0.79]
[1730906412498,3.75485,2663.3,2662.5,0.79]
[1730906412817,3.75503,2663.1,2662.5,0.79]
[1730906413014,7.51019,2663.1,2662.5,0.79]
[1730906413231,3.7545,2663.5,2662.5,0.79]
[1730906413432,3.7545,2663.5,2662.7,3.75554]
[1730906413727,3.75458,2663.5,2662.7,4.210094]
[1730906413939,3.75458,2663.5,2662.5,4.54584]
[1730906413940,3.75417,2663.7,2662.5,4.54584]
[1730906414129,3.75477,2663.3,2662.5,4.54584]
[1730906414291,3.75451,2663.5,2662.7,3.75549]
[1730906414489,3.75475,2663.3,2662.5,4.54584]
[1730906414992,3.75475,2663.3,2662.5,8.30161]
[1730906415322,3.75477,2663.3,2662.7,3.75554]
[1730906415631,3.75463,2663.4,2662.7,3.75549]
[1730906415793,3.75484,2663.3,2662.6,3.75571]
[1730906416120,3.75484,2663.3,2662.5,4.54575]
[1730906416499,3.75488,2663.2,2662.5,0.79]
[1730906416708,0.750972,2663.1,2662.5,4.54584]
[1730906416912,3.7549,2663.2,2662.5,4.54584]
[1730906417107,3.75504,2663.1,2662.5,4.54584]
[1730906417308,3.75546,2662.8,2662.5,0.79]
[1730906417731,3.75546,2662.8,2662.1,4.58074]
[1730906417887,3.75478,2663.3,2662.1,4.58074]
[1730906417888,3.75474,2663.3,2662.1,0.8244]
[1730906418089,3.75573,2662.6,2662.1,0.8244]
[1730906418419,3.75569,2662.7,2662.1,0.8244]
[1730906418800,3.7553,2662.9,2662.2,0.07511243]
[1730906419000,3.75509,2663.1,2662.4,3.75591]
[1730906419319,3.75509,2663.1,2662.5,0.0751034]
[1730906419870,3.75478,2663.3,2662.5,0.0751034]
[1730906419998,3.75478,2663.3,2662.6,3.7556]
[1730906420349,0.8007,2664.2,2662.7,0.7644]
[1730906420637,3.75463,2663.4,2662.8,3.75535]
[1730906421228,3.75368,2664.1,2662.7,0.7644]
[1730906421409,3.75524,2663.0,2662.7,0.7644]
[1730906421906,3.7554,2662.9,2662.3,0.7732]
[1730906422221,3.7554,2662.9,2662.3,4.52923]
[1730906422441,3.75521,2663.0,2662.4,3.75597]
[1730906422657,3.75573,2662.6,2662.3,0.7732]
[1730906422853,3.756,2662.4,2662.1,0.05635459]
[1730906423209,3.75629,2662.2,2662.1,0.05635459]
[1730906423303,7.51364,2661.9,2661.6,0.7956]
[1730906423520,3.75646,2662.1,2661.6,0.7956]
[1730906423733,3.75646,2662.1,2661.2,0.8292]
[1730906423734,0.375646,2662.1,2661.2,0.8292]
[1730906423935,3.75714,2661.6,2661.2,0.8292]
[1730906424123,3.75753,2661.4,2661.2,0.8292]
[1730906424601,3.75721,2661.6,2661.2,0.8292]
[1730906424800,3.7569,2661.8,2661.3,0.07514551]
[1730906424996,3.75552,2662.8,2661.2,0.8292]
[1730906425241,3.75702,2661.7,2661.3,0.07514329]
[1730906425411,3.75657,2662.0,2661.3,0.07514329]
[1730906425614,3.75751,2661.4,2660.7,4.54611]
[1730906425851,3.75757,2661.3,2660.7,0.7878]
[1730906426214,0.7596,2661.8,2660.7,0.7878]
[1730906426215,3.7578,2661.2,2660.7,0.7878]
[1730906426415,3.75809,2661.0,2660.7,0.7878]
[1730906426606,3.75699,2661.7,2660.7,0.7878]
[1730906426934,3.7581,2661.0,2660.7,0.7878]
[1730906427120,3.75814,2660.9,2660.7,0.7878]
[1730906427314,3.75791,2661.1,2660.7,0.7878]
[1730906427521,3.75812,2660.9,2660.7,0.7878]
[1730906427904,3.75791,2661.1,2660.7,0.7878]
[1730906428111,3.7573,2661.5,2660.9,3.75811]
[1730906428338,3.75703,2661.7,2661.0,0.07514792]
[1730906428543,3.756,2662.4,2661.0,3.75797]
[1730906428709,3.75615,2662.3,2660.8,3.75819]
[1730906428909,3.75709,2661.7,2660.9,0.07514794]
[1730906429134,3.75743,2661.4,2660.8,4.588575]
[1730906429311,3.75743,2661.4,2660.7,4.54617]
[1730906429543,3.75647,2662.1,2660.7,0.7878]
[1730906429544,3.75806,2661.0,2660.7,0.7878]
[1730906429852,3.75788,2661.1,2660.7,0.7878]
[1730906430419,3.75785,2661.1,2660.7,0.7878]
[1730906430618,3.75773,2661.2,2660.7,0.7878]
[1730906430919,3.75714,2661.6,2661.0,3.7579]
[1730906431247,3.75635,2662.2,2661.5,0.7683]
[1730906431558,7.51273,2662.2,2661.6,0.07513268]
[1730906431707,3.75654,2662.1,2661.6,0.07513268]
[1730906431905,3.75659,2662.0,2661.6,0.07513268]
[1730906432101,3.75659,2662.0,2661.7,0.05106731]
[1730906432401,3.75707,2661.7,2661.1,8.29051]
[1730906432601,3.75707,2661.7,2661.2,3.7576]
[1730906432817,3.75707,2661.7,2661.1,4.53275]
[1730906433038,3.75715,2661.6,2661.1,4.53275]
[1730906433242,3.757,2661.7,2661.1,4.53275]
[1730906433645,3.757,2661.7,2661.2,0.07514364]
[1730906433855,3.75633,2662.2,2661.1,4.53275]
[1730906434059,3.75657,2662.0,2660.7,0.775]
[1730906434283,0.375633,2662.1,2660.7,0.775]
[1730906434284,3.75744,2661.4,2660.7,0.775]
[1730906434421,3.75784,2661.1,2660.7,0.85015976]
[1730906434622,3.75769,2661.3,2660.7,0.85015976]
[1730906434974,3.75808,2661.0,2660.7,0.775]
[1730906435157,3.75786,2661.1,2660.7,0.775]
[1730906435359,3.75742,2661.4,2660.8,3.83331621]
[1730906435560,3.75726,2661.6,2660.9,3.75804]
[1730906435925,3.75726,2661.6,2660.7,0.775]
[1730906435926,3.75784,2661.2,2660.7,0.775]
[1730906436189,3.75798,2661.0,2660.5,0.07516375]
[1730906436353,7.51554,2661.2,2660.6,3.75854]
[1730906436519,3.75773,2661.2,2660.5,3.75865]
[1730906436724,3.75773,2661.2,2660.6,0.07516121]
[1730906436941,3.75791,2661.1,2660.5,4.212535]
[1730906437196,3.75748,2661.4,2660.8,3.75817]
[1730906437499,3.75748,2661.4,2660.5,0.453885]
[1730906437537,3.75771,2661.2,2660.4,3.75874]
[1730906437873,3.76727,2661.5,2660.3,0.7802]
[1730906438060,3.75924,2660.2,2659.9,0.7819]
[1730906438369,3.7592,2660.2,2660.0,0.0472477]
[1730906438540,3.75911,2660.2,2660.0,0.0472477]
[1730906438859,7.51778,2660.4,2660.0,0.0472477]
[1730906439032,3.75834,2660.8,2660.0,0.12243173]
[1730906439233,3.7581,2661.0,2660.1,3.75913]
[1730906439424,3.75826,2660.8,2660.2,0.38063777]
[1730906439622,3.75846,2660.7,2660.2,0.04712114]
[1730906439862,3.75846,2660.7,2660.1,3.75917]
[1730906440019,3.75817,2660.9,2660.3,3.80574745]
[1730906440220,3.75828,2660.8,2660.2,0.04684301]
[1730906440611,3.75811,2661.0,2660.4,0.04682459]
[1730906440728,3.75776,2661.2,2660.5,7.56420388]
[1730906440920,3.75776,2661.2,2660.6,0.90406248]
[1730906441130,3.75776,2661.2,2660.7,0.04635471]
[1730906441341,3.75807,2661.0,2660.7,0.04635471]
[1730906441869,7.51615,2661.0,2660.7,0.04635471]
[1730906442082,3.75821,2660.9,2660.7,0.04635471]
[1730906442258,3.75807,2661.0,2660.7,0.04635471]
[1730906442464,3.75826,2660.8,2660.7,0.04635471]
[1730906442827,3.75826,2660.8,2660.2,0.773]
[1730906443054,3.75826,2660.8,2660.7,0.04643448]
[1730906443378,3.7584,2660.7,2659.9,0.07518129]
[1730906443545,3.7584,2660.7,2659.8,0.773]
[1730906443546,3.75876,2660.5,2659.8,4.53257]
[1730906443962,3.75876,2660.5,2659.9,0.04759405]
[1730906444569,3.75909,2660.3,2659.9,0.04759405]
[1730906445103,3.75876,2660.5,2659.9,0.04759405]
[1730906445769,3.75855,2660.6,2659.9,0.51313206]
[1730906445978,3.7587,2660.5,2659.9,0.51313206]
[1730906446176,7.51747,2660.5,2659.9,0.51313206]
[1730906446345,3.7589,2660.4,2659.9,0.04759405]
[1730906446983,3.75871,2660.5,2660.0,0.07518295]
[1730906447157,3.75841,2660.7,2660.0,3.83451295]
[1730906447478,3.75821,2660.9,2660.1,3.80715389]
[1730906447843,3.75771,2661.2,2660.4,0.8324]
[1730906448044,3.75785,2661.1,2660.5,0.07517023]
[1730906448379,3.75821,2660.9,2660.5,0.04752281]
[1730906448900,7.51584,2661.1,2660.5,0.04752281]
[1730906449044,3.75792,2661.1,2660.5,0.04752281]
[1730906449575,3.7577,2661.2,2660.5,4.27005309]
[1730906449775,3.7577,2661.2,2660.6,3.75853]
[1730906450104,3.7577,2661.2,2660.5,4.27005309]
[1730906450275,3.7577,2661.2,2660.6,0.04750703]
[1730906450581,3.7577,2661.2,2660.6,0.55775076]
[1730906450752,3.75745,2661.4,2660.7,3.7584]